fUST/lending_fUST_20250830
["ID","MTS","AMOUNT","RATE_DAILY","PERIOD"]
[382181174,1756536639562,-218.88831802,0.00024873,2]
[382181176,1756536639572,-504.34246604,0.00024873,2]
[382181178,1756536639581,-500.0,0.00024873,2]
[382181179,1756536639591,-500.0,0.00024873,2]
[382181182,1756536639600,-500.0,0.00024873,2]
[382181184,1756536639611,-556.45277575,0.00024873,2]
[382181186,1756536639620,-500.0,0.00024873,2]
[382181188,1756536639630,-500.0,0.00024873,2]
[382181190,1756536639640,-500.0,0.00024873,2]
[382181191,1756536639650,-500.0,0.00024873,2]
[382181194,1756536639662,-502.89245792,0.00024873,2]
[382181196,1756536639671,-501.27558114,0.00024873,2]
[382181197,1756536639681,-500.0,0.00024873,2]
[382181200,1756536639691,-500.84524801,0.00024873,2]
[382181202,1756536639705,-500.0,0.00024873,2]
[382181203,1756536639714,-500.0,0.00024873,2]
[382181205,1756536639723,-500.0,0.00024873,2]
[382181207,1756536639733,-500.0,0.00024873,2]
[382181209,1756536639744,-500.0,0.00024873,2]
[382181211,1756536639753,-500.0,0.00024873,2]
[382181213,1756536639763,-9319.723221,0.0002489,2]
[382181215,1756536639773,-151.0,0.000249,7]
[382181217,1756536639784,-151.0,0.000249,7]
[382181219,1756536639794,-151.0,0.000249,9]
[382181221,1756536639803,-153.829861,0.000249,7]
[382181223,1756536639813,-152.372997,0.000249,7]
[382181225,1756536639822,-152.212318,0.000249,7]
[382181227,1756536639832,-151.0,0.000249,7]
[382181229,1756536639842,-151.0,0.000249,7]
[382181231,1756536639851,-151.0,0.000249,7]
[382181233,1756536639861,-151.0,0.000249,7]
[382181235,1756536639873,-151.0,0.000249,7]
[382181237,1756536639882,-151.0,0.000249,7]
[382181239,1756536639892,-151.0,0.000249,7]
[382181241,1756536639902,-151.0,0.000249,7]
[382181243,1756536639912,-151.0,0.000249,7]
[382181245,1756536639921,-151.0,0.000249,7]
[382181247,1756536639931,-155.323257,0.000249,7]
[382181249,1756536639941,-151.286264,0.000249,7]
[382181251,1756536639952,-151.0,0.000249,7]
[382181253,1756536639962,-174.191522,0.000249,7]
[382181255,1756536639972,-151.0,0.000249,7]
[382181257,1756536639982,-169.254544,0.000249,7]
[382181259,1756536639991,-188.685008,0.000249,7]
[382181261,1756536640001,-188.685008,0.000249,7]
[382181263,1756536640010,-188.685008,0.000249,7]
[382181265,1756536640019,-188.685008,0.000249,7]
[382181267,1756536640029,-151.0,0.000249,7]
[382181268,1756536640038,-153.535477,0.000249,7]
[382181270,1756536640047,-151.0,0.000249,7]
[382181272,1756536640057,-151.0,0.000249,7]
[382181274,1756536640067,-151.0,0.000249,7]
[382181276,1756536640076,-217909.00691124,0.000249,2]
[382181279,1756536640089,-23355.08887451,0.000249,2]
[382181282,1756536640110,-1401.21430455,0.000249,2]
[382181338,1756536640672,-1141.7131587,0.000249,2]
[382181340,1756536640681,-151.0,0.000249,7]
[382181342,1756536640691,-268.233184,0.000249,7]
[382181344,1756536640700,-151.0,0.000249,7]
[382181346,1756536640711,-151.0,0.000249,7]
[382181348,1756536640722,-190.135616,0.000249,7]
[382181350,1756536640731,-1.77353512,0.000249,7]
[382181352,1756536640743,-188.36208088,0.000249,7]
[382181354,1756536640753,-190.135616,0.000249,7]
[382181356,1756536640763,-190.135616,0.000249,7]
[382181358,1756536640772,-151.0,0.00024927,20]
[382181360,1756536640781,-608.0,0.00024936,2]
[382181362,1756536640791,-608.0,0.00024962,2]
[382181364,1756536640801,-500.0,0.00025038,2]
[382181366,1756536640811,-500.0,0.00025056,2]
[382181368,1756536640820,-7532.71668712,0.00025066,2]
[382181600,1756536643486,-3630.21671336,0.00024796,2]
[382182108,1756536649030,-7507.896031,0.00024796,2]
[382182109,1756536649041,-641.00223132,0.00024796,2]
[382182110,1756536649052,-6390.00702025,0.00024796,2]
[382185581,1756536781217,263.56872668,0.0002399,120]
[382185582,1756536797791,163.777046,0.00013699,2]
[382185584,1756536804954,-163.777046,0.00020548,2]
[382185585,1756536807564,294.37678832,0.000199,2]
[382185586,1756536842427,300.0,0.00023532,2]
[382185587,1756536902181,300.0,0.00023532,2]
[382185588,1756536903223,1200.0,0.00023532,2]
[382185589,1756536903625,300.0,0.00023532,2]
[382185590,1756536908830,500.0,0.00023532,2]
[382185591,1756536908892,500.0,0.00023532,2]
[382185592,1756536908959,255.37890526,0.00023532,2]
[382185593,1756536958979,2864.46228396,0.00023533,2]
[382185594,1756536970444,635.72,0.00023523,10]
[382185595,1756536975127,255.12654988,0.000199,2]
[382185596,1756537001021,592.78727044,0.000235,2]
[382185598,1756537044379,810.17073031,0.000235,2]
[382185600,1756537146795,221.10967656,0.000199,2]
[382185603,1756537210429,382.60000924,0.000235,2]
[382185604,1756537224329,260.72369403,0.00023532,2]
[382185605,1756537224356,223.16883078,0.00023532,2]
[382185606,1756537226318,480.0,0.00023532,2]
[382185607,1756537226929,480.0,0.00023532,2]
[382185608,1756537227229,626.34,0.00023532,2]
[382185609,1756537232655,565.25,0.00023532,2]
[382185610,1756537235870,746.69,0.00023532,2]
[382185611,1756537237092,1147.26,0.00023532,2]
[382185612,1756537237204,480.0,0.00023532,2]
[382185613,1756537237504,480.0,0.00023532,2]
[382185614,1756537244565,480.0,0.00023532,2]
[382185615,1756537245963,480.0,0.00023532,2]
[382185616,1756537247634,1348.22,0.00023532,2]
[382185617,1756537248641,480.0,0.00023532,2]
[382185618,1756537248741,1742.4,0.00023532,2]
[382185619,1756537249505,240.68116922,0.00023532,2]
[382185620,1756537249532,239.31883078,0.00023532,2]
[382185621,1756537254157,480.0,0.00023532,2]
[382185622,1756537262251,1911.48,0.00023532,2]
[382185623,1756537266014,4881.01,0.00023532,2]
[382185624,1756537271267,480.0,0.00023532,2]
[382185625,1756537272872,480.0,0.00023532,2]
[382185626,1756537278247,480.0,0.00023532,2]
[382185627,1756537279113,480.0,0.00023532,2]
[382185628,1756537280100,480.0,0.00023532,2]
[382185629,1756537280308,88.20116922,0.00023532,2]
[382185630,1756537280336,1360.07883078,0.00023532,2]
[382185631,1756537282642,480.0,0.00023532,2]
[382185632,1756537283077,520.67,0.00023532,2]
[382185633,1756537286545,480.0,0.00023532,2]
[382185634,1756537288021,700.17,0.00023532,2]
[382185635,1756537288835,1448.24,0.00023532,2]
[382185636,1756537293427,480.0,0.00023532,2]
[382185637,1756537294735,4489.62,0.00023532,2]
[382185638,1756537296833,41.23116922,0.00023532,2]
[382185639,1756537296860,439.01883078,0.00023532,2]
[382185640,1756537299708,620.82,0.00023532,2]
[382185641,1756537301053,480.0,0.00023532,2]
[382185642,1756537303911,480.0,0.00023532,2]
[382185643,1756537304301,151.0,0.000233,8]
[382185644,1756537304647,151.0,0.000219,3]
[382185645,1756537304839,1018.26,0.00023532,2]
[382185646,1756537304983,151.0,0.000205,4]
[382185647,1756537305299,480.0,0.00023532,2]
[382185648,1756537305332,151.0,0.000192,2]
[382185649,1756537305852,151.0,0.000178,2]
[382185650,1756537306135,151.0,0.000165,2]
[382185651,1756537306336,2926.56,0.00023532,2]
[382185652,1756537306491,151.0,0.000151,2]
[382185653,1756537308487,391.9738087,0.00023532,2]
[382185654,1756537310801,480.0,0.00023532,2]
[382185655,1756537311910,395.19151364,0.000235,2]
[382185656,1756537312877,480.0,0.00023532,2]
[382185657,1756537315702,480.0,0.00023532,2]
[382185658,1756537315774,271.18584688,0.00023532,2]
[382185659,1756537315803,208.81415312,0.00023532,2]
[382185660,1756537317944,480.0,0.00023532,2]
[382185661,1756537319177,1260.14,0.00023532,2]
[382185662,1756537321053,480.0,0.00023532,2]
[382185663,1756537322354,1600.17,0.00023532,2]
[382185664,1756537323625,480.0,0.00023532,2]
[382185665,1756537324106,480.0,0.00023532,2]
[382185666,1756537325515,3138.79,0.00023532,2]
[382185667,1756537325680,1872.09584688,0.00023532,2]
[382185668,1756537325711,1206.96415312,0.00023532,2]
[382185669,1756537325827,480.0,0.00023532,2]
[382185670,1756537327691,2251.64,0.00023532,2]
[382185671,1756537327836,480.0,0.00023532,2]
[382185672,1756537329970,854.06,0.00023532,2]
[382185673,1756537336668,496.81,0.00023532,2]
[382185674,1756537337093,1134.27,0.00023532,2]
[382185675,1756537338056,480.0,0.00023532,2]
[382185676,1756537338162,480.0,0.00023532,2]
[382185677,1756537344680,371.49921528,0.000199,2]
[382185678,1756537345875,623.68,0.00023532,2]
[382185679,1756537347439,480.0,0.00023532,2]
[382185680,1756537349452,480.0,0.00023532,2]
[382185681,1756537353155,181.0866316,0.00023532,2]
[382185682,1756537353183,298.9133684,0.00023532,2]
[382185683,1756537353284,480.0,0.00023532,2]
[382185684,1756537353580,480.0,0.00023532,2]
[382185685,1756537353822,480.0,0.00023532,2]
[382185686,1756537354943,480.0,0.00023532,2]
[382185687,1756537356689,480.0,0.00023532,2]
[382185688,1756537360943,480.0,0.00023532,2]
[382185689,1756537361767,1505.93,0.00023532,2]
[382185690,1756537365400,480.0,0.00023532,2]
[382185691,1756537367540,480.0,0.00023532,2]
[382185692,1756537369599,480.0,0.00023532,2]
[382185693,1756537369638,480.0,0.00023532,2]
[382185694,1756537370653,480.0,0.00023532,2]
[382185695,1756537372781,480.0,0.00023532,2]
[382185696,1756537375038,480.0,0.00023532,2]
[382185697,1756537375104,530.27,0.00023532,2]
[382185698,1756537375159,480.0,0.00023532,2]
[382185699,1756537378328,480.0,0.00023532,2]
[382185700,1756537378895,464.8966316,0.00023532,2]
[382185701,1756537378925,15.1033684,0.00023532,2]
[382185702,1756537380125,4215.64,0.00023532,2]
[382185703,1756537382389,480.0,0.00023532,2]
[382185704,1756537382442,480.0,0.00023532,2]
[382185705,1756537383625,480.0,0.00023532,2]
[382185706,1756537385319,1665.32,0.00023532,2]
[382185707,1756537387777,717.15,0.00023532,2]
[382185708,1756537388546,480.0,0.00023532,2]
[382185709,1756537388849,742.99,0.00023532,2]
[382185710,1756537394084,480.0,0.00023532,2]
[382185711,1756537395221,243.8066316,0.00023532,2]
[382185712,1756537395250,1003.3933684,0.00023532,2]
[382185713,1756537398367,480.0,0.00023532,2]
[382185714,1756537399239,480.0,0.00023532,2]
[382185715,1756537399951,480.0,0.00023532,2]
[382185716,1756537400145,412.3326806,0.00023532,2]
[382185717,1756537401321,1246.32,0.00023532,2]
[382185718,1756537402238,480.0,0.00023532,2]
[382185719,1756537404086,1472.06,0.00023532,2]
[382185720,1756537406916,1375.09,0.00023532,2]
[382185721,1756537408151,922.15,0.00023532,2]
[382185722,1756537411351,480.0,0.00023532,2]
[382185723,1756537411396,480.0,0.00023532,2]
[382185724,1756537411773,688.663951,0.00023532,2]
[382185725,1756537411802,1189.996049,0.00023532,2]
[382185726,1756537412346,865.6,0.00023532,2]
[382185727,1756537415218,480.0,0.00023532,2]
[382185728,1756537421320,833.65,0.00023532,2]
[382185729,1756537422043,365.18445844,0.00023532,2]
[382185730,1756537422327,819.16,0.00023532,2]
[382185731,1756537424101,1503.24,0.00023532,2]
[382185732,1756537424322,767.48,0.00023532,2]
[382185733,1756537425741,480.0,0.00023532,2]
[382185734,1756537427252,1648.16,0.00023532,2]
[382185735,1756537428293,480.0,0.00023532,2]
[382185736,1756537431281,480.0,0.00023532,2]
[382185737,1756537432163,87.53949256,0.00023532,2]
[382185738,1756537432190,392.46050744,0.00023532,2]
[382185739,1756537437208,1283.19,0.00023532,2]
[382185740,1756537440054,480.0,0.00023532,2]
[382185741,1756537441010,480.0,0.00023532,2]
[382185742,1756537441041,1836.53,0.00023532,2]
[382185743,1756537443224,1537.05,0.00023532,2]
[382185744,1756537445712,1310.83,0.00023532,2]
[382185745,1756537445815,480.0,0.00023532,2]
[382185746,1756537449000,480.0,0.00023532,2]
[382185747,1756537449465,1365.42,0.00023532,2]
[382185748,1756537451758,354.52949256,0.00023532,2]
[382185749,1756537451785,125.47050744,0.00023532,2]
[382185750,1756537456491,617.35,0.00023532,2]
[382185751,1756537457353,480.0,0.00023532,2]
[382185752,1756537457453,716.41,0.00023532,2]
[382185753,1756537459301,480.0,0.00023532,2]
[382185754,1756537459795,1698.07,0.00023532,2]
[382185755,1756537460005,1258.72,0.00023532,2]
[382185756,1756537464481,480.0,0.00023532,2]
[382185757,1756537465763,480.0,0.00023532,2]
[382185758,1756537466091,480.0,0.00023532,2]
[382185759,1756537468709,1010.08,0.00023532,2]
[382185760,1756537469970,600.24,0.00023532,2]
[382185761,1756537470843,463.98294819,0.00023532,2]
[382185762,1756537473329,1109.68654437,0.00023532,2]
[382185763,1756537473358,861.80345563,0.00023532,2]
[382185764,1756537474378,1333.36,0.00023532,2]
[382185765,1756537476096,480.0,0.00023532,2]
[382185766,1756537476966,1292.05,0.00023532,2]
[382185767,1756537477090,480.0,0.00023532,2]
[382185768,1756537477925,480.0,0.00023532,2]
[382185769,1756537481663,480.0,0.00023532,2]
[382185770,1756537483814,779.22,0.00023532,2]
[382185771,1756537488770,480.0,0.00023532,2]
[382185772,1756537489949,487.66,0.00023532,2]
[382185773,1756537491390,601.62,0.00023532,2]
[382185774,1756537491587,480.0,0.00023532,2]
[382185775,1756537492041,480.0,0.00023532,2]
[382185776,1756537494368,500.0,0.00023532,2]
[382185777,1756537494611,500.0,0.00023532,2]
[382185778,1756537494868,284.29654437,0.00023532,2]
[382185779,1756537494896,215.70345563,0.00023532,2]
[382185780,1756537495108,500.0,0.00023532,2]
[382185781,1756537495394,500.0,0.00023532,2]
[382185782,1756537495653,503.70511732,0.00023532,2]
[382185783,1756537495948,1803.64,0.00023532,2]
[382185784,1756537496389,480.0,0.00023532,2]
[382185785,1756537497166,480.0,0.00023532,2]
[382185786,1756537497394,1669.8,0.00023532,2]
[382185787,1756537498122,500.0,0.00023532,2]
[382185788,1756537498213,226.1162744,0.00023532,2]
[382185789,1756537506060,-480.0,0.00023532,2]
[382185790,1756537506098,-2115.8,0.00023532,2]
[382185791,1756537507065,480.0,0.00023532,2]
[382185792,1756537507723,480.0,0.00023532,2]
[382185793,1756537508428,603.43,0.00023532,2]
[382185794,1756537509600,480.0,0.00023532,2]
[382185795,1756537511290,480.0,0.00023532,2]
[382185796,1756537512355,480.0,0.00023532,2]
[382185797,1756537512500,480.0,0.00023532,2]
[382185798,1756537513850,263.46100908,0.000235,2]
[382185799,1756537515876,480.0,0.00023532,2]
[382185800,1756537516338,480.0,0.00023532,2]
[382185801,1756537521066,101.51899092,0.00023532,2]
[382185802,1756537521096,378.48100908,0.00023532,2]
[382185803,1756537521259,480.0,0.00023532,2]
[382185804,1756537521565,919.09,0.00023532,2]
[382185805,1756537525186,480.0,0.00023532,2]
[382185806,1756537525414,642.09,0.00023532,2]
[382185807,1756537525796,359.10773592,0.000199,2]
[382185808,1756537525857,2804.62,0.00023532,2]
[382185809,1756537525896,359.10773592,0.00022985,2]
[382185810,1756537527487,-6791.37130005,0.00023533,2]
[382185811,1756537527544,-10000.01,0.00023533,2]
[382185812,1756537527602,-10000.01,0.00023533,2]
[382185813,1756537527804,-10000.01,0.00023533,2]
[382185814,1756537528580,4677.63,0.00023532,2]
[382185815,1756537556337,-306.0800074,0.000235,2]
[382185816,1756537556371,-306.08000739,0.00023508,2]
[382185817,1756537556404,-306.08000739,0.00023516,2]
[382185818,1756537556438,-603.76,0.00023532,2]
[382185819,1756537556472,-480.0,0.00023532,2]
[382185820,1756537556507,-480.0,0.00023532,2]
[382185821,1756537556543,-733.36,0.00023532,2]
[382185822,1756537556576,-480.0,0.00023532,2]
[382185823,1756537556609,-480.0,0.00023532,2]
[382185824,1756537556644,-480.0,0.00023532,2]
[382185825,1756537556677,-94.69995564,0.00023532,2]
[382185826,1756537556741,-499.89004436,0.00023532,2]
[382185827,1756537556775,-1533.5,0.00023532,2]
[382185828,1756537556809,-1387.94,0.00023532,2]
[382185829,1756537556844,-480.0,0.00023532,2]
[382185830,1756537556977,-2950.77,0.00023532,2]
[382185831,1756537557009,-480.0,0.00023532,2]
[382185832,1756537557046,-480.0,0.00023532,2]
[382185833,1756537557323,-4302.55,0.00023532,2]
[382185834,1756537557358,-480.0,0.00023532,2]
[382185835,1756537557449,-306.08000739,0.00023524,2]
[382185836,1756537557483,-480.0,0.00023532,2]
[382185837,1756537557516,-1302.85,0.00023532,2]
[382185838,1756537557553,-500.0,0.00023532,2]
[382185839,1756537557587,-567.41189774,0.00023532,2]
[382185840,1756537557626,-500.0,0.00023532,2]
[382185841,1756537557666,-500.0,0.00023532,2]
[382185842,1756537557707,-500.0,0.00023532,2]
[382185843,1756537557745,-187.32618974,0.00023532,2]
[382185844,1756537558059,-312.67381026,0.00023532,2]
[382185845,1756537558094,-500.0,0.00023532,2]
[382185846,1756537558133,-250.0,0.00023532,2]
[382185847,1756537558174,-500.0,0.00023532,2]
[382185848,1756537558206,-168.15302202,0.00023532,2]
[382185849,1756537558240,-500.0,0.00023532,2]
[382185850,1756537558274,-500.0,0.00023532,2]
[382185851,1756537558308,-500.0,0.00023532,2]
[382185852,1756537558342,-500.0,0.00023532,2]
[382185853,1756537558374,-250.0,0.00023532,2]
[382185854,1756537559855,306.08000739,0.00023532,2]
[382185855,1756537559961,480.0,0.00023532,2]
[382185856,1756537560533,594.95,0.00023532,2]
[382185857,1756537560598,480.0,0.00023532,2]
[382185858,1756537562279,177.32632805,0.00023532,2]
[382185859,1756537562315,329.05367195,0.00023532,2]
[382185860,1756537562879,-333208.59869995,0.00023533,2]
[382185861,1756537562909,-5662.01,0.000236,7]
[382185862,1756537562940,-43223.16,0.000236,7]
[382185863,1756537562968,-216.25802849,0.000236,7]
[382185864,1756537563180,417.15472785,0.000236,7]
[382185865,1756537565183,480.0,0.00023532,2]
[382185866,1756537566166,-480.0,0.00023632,2]
[382185867,1756537566200,-596.57,0.00023632,2]
[382185868,1756537566234,-480.0,0.00023632,2]
[382185869,1756537566265,-480.0,0.00023632,2]
[382185870,1756537566301,-705.43,0.00023632,2]
[382185871,1756537566335,-480.0,0.00023632,2]
[382185872,1756537566368,-859.35,0.00023632,2]
[382185873,1756537566402,-582.08,0.00023632,2]
[382185874,1756537566627,-694.4,0.00023632,2]
[382185875,1756537566661,-480.0,0.00023632,2]
[382185876,1756537566696,-607.09,0.00023632,2]
[382185877,1756537566730,-1754.0,0.00023632,2]
[382185878,1756537566764,-480.0,0.00023632,2]
[382185879,1756537566799,-480.0,0.00023632,2]
[382185880,1756537566835,-480.0,0.00023632,2]
[382185881,1756537567012,-480.0,0.00023632,2]
[382185882,1756537567048,-1696.78,0.00023632,2]
[382185883,1756537567083,-480.0,0.00023632,2]
[382185884,1756537567226,-4936.56,0.00023632,2]
[382185885,1756537567445,-1270.87,0.00023632,2]
[382185886,1756537567481,-480.0,0.00023632,2]
[382185887,1756537567517,-480.0,0.00023632,2]
[382185888,1756537567554,-1409.35,0.00023632,2]
[382185889,1756537567589,-480.0,0.00023632,2]
[382185890,1756537567624,-480.0,0.00023632,2]
[382185891,1756537567659,-319.57,0.00023632,2]
[382185892,1756537567784,-160.43,0.00023632,2]
[382185893,1756537567819,-480.0,0.00023632,2]
[382185894,1756537567855,-746.0,0.00023632,2]
[382185895,1756537567891,-536.01,0.00023632,2]
[382185896,1756537567927,-480.0,0.00023632,2]
[382185897,1756537567965,-480.0,0.00023632,2]
[382185898,1756537568003,-480.0,0.00023632,2]
[382185899,1756537568040,-871.01,0.00023632,2]
[382185900,1756537568077,-480.0,0.00023632,2]
[382185901,1756537568114,-93.11,0.00023632,2]
[382185902,1756537568388,-386.89,0.00023632,2]
[382185903,1756537568423,-664.47,0.00023632,2]
[382185904,1756537568458,-495.88,0.00023632,2]
[382185905,1756537568492,-480.0,0.00023632,2]
[382185906,1756537568528,-480.0,0.00023632,2]
[382185907,1756537568566,-1541.97,0.00023632,2]
[382185908,1756537568603,-480.0,0.00023632,2]
[382185909,1756537568639,-461.59,0.00023632,2]
[382185910,1756537568682,-18.41,0.00023632,2]
[382185911,1756537568716,-480.0,0.00023632,2]
[382185912,1756537568749,-480.0,0.00023632,2]
[382185913,1756537568783,-480.0,0.00023632,2]
[382185914,1756537568818,-480.0,0.00023632,2]
[382185915,1756537568852,-208.26225599,0.00023632,2]
[382185916,1756537568887,-480.0,0.00023632,2]
[382185917,1756537568922,-480.0,0.00023632,2]
[382185918,1756537568956,-480.0,0.00023632,2]
[382185919,1756537568990,-881.09,0.00023632,2]
[382185920,1756537569184,-480.0,0.00023632,2]
[382185921,1756537569361,-1228.19,0.00023632,2]
[382185922,1756537569395,-286.36684602,0.00023632,2]
[382185923,1756537569429,-480.0,0.00023632,2]
[382185924,1756537569463,-1605.85,0.00023632,2]
[382185925,1756537569496,-480.0,0.00023632,2]
[382185926,1756537569529,-480.0,0.00023632,2]
[382185927,1756537569563,-399.19630796,0.00023632,2]
[382185928,1756537569684,-80.80369204,0.00023632,2]
[382185929,1756537569718,-480.0,0.00023632,2]
[382185930,1756537569753,-480.0,0.00023632,2]
[382185931,1756537569788,-480.0,0.00023632,2]
[382185932,1756537569823,-480.0,0.00023632,2]
[382185933,1756537569857,-484.11929599,0.00023632,2]
[382185934,1756537569892,-480.0,0.00023632,2]
[382185935,1756537569927,-480.0,0.00023632,2]
[382185936,1756537569961,-460.73481367,0.00023632,2]
[382185937,1756537569996,-1003.92,0.00023632,2]
[382185938,1756537570980,500.0,0.00023532,2]
[382185939,1756537571370,-169.74601869,0.00023632,2]
[382185940,1756537571389,-310.25398131,0.00023632,2]
[382185941,1756537571403,-169.74601869,0.00023632,2]
[382185942,1756537571430,-480.0,0.00023632,2]
[382185943,1756537571459,-484.11929599,0.00023632,2]
[382185944,1756537571486,-480.0,0.00023632,2]
[382185945,1756537571506,-367.97468532,0.00023632,2]
[382185946,1756537571515,-112.02531468,0.00023632,2]
[382185947,1756537571537,-460.73481367,0.00023632,2]
[382185948,1756537571556,-1003.92,0.00023632,2]
[382185949,1756537571575,-180.8543966,0.00023632,2]
[382185950,1756537572877,500.0,0.00023532,2]
[382185951,1756537575708,255.48030051,0.00023532,2]
[382185952,1756537575867,3008.01,0.00023532,2]
[382185953,1756537575922,500.0,0.00023532,2]
[382185954,1756537575989,500.0,0.00023532,2]
[382185955,1756537576018,200.0,0.00023532,2]
[382185956,1756537576096,500.0,0.00023532,2]
[382185957,1756537576183,500.0,0.00023532,2]
[382185958,1756537576219,500.0,0.00023532,2]
[382185959,1756537576679,836.93,0.00023532,2]
[382185960,1756537577026,500.0,0.00023532,2]
[382185961,1756537577084,307.43453656,0.00023532,2]
[382185962,1756537580479,500.0,0.00023532,2]
[382185963,1756537580527,500.0,0.00023532,2]
[382185964,1756537580590,500.0,0.00023532,2]
[382185965,1756537580684,309.56875454,0.00023532,2]
[382185966,1756537581520,-480.0,0.00023632,2]
[382185967,1756537581542,-481.98444956,0.00023632,2]
[382185968,1756537581563,-480.0,0.00023632,2]
[382185969,1756537581586,-1592.64,0.00023632,2]
[382185970,1756537581608,-1594.61,0.00023632,2]
[382185971,1756537581629,-480.0,0.00023632,2]
[382185972,1756537581651,-480.0,0.00023632,2]
[382185973,1756537581673,-591.26,0.00023632,2]
[382185974,1756537581695,-480.0,0.00023632,2]
[382185975,1756537581716,-1410.88,0.00023632,2]
[382185976,1756537581738,-1410.88,0.00023632,2]
[382185977,1756537581763,-480.0,0.00023632,2]
[382185978,1756537581785,-1410.88,0.00023632,2]
[382185979,1756537581807,-1410.88,0.00023632,2]
[382185980,1756537581832,-1410.88,0.00023632,2]
[382185981,1756537581855,-1568.06,0.00023632,2]
[382185982,1756537581881,-1305.01,0.00023632,2]
[382185983,1756537581903,-480.0,0.00023632,2]
[382185984,1756537581924,-480.0,0.00023632,2]
[382185985,1756537581946,-1410.88,0.00023632,2]
[382185986,1756537581969,-1410.88,0.00023632,2]
[382185987,1756537581991,-1410.88,0.00023632,2]
[382185988,1756537582016,-1410.88,0.00023632,2]
[382185989,1756537582043,-1077.37,0.00023632,2]
[382185990,1756537582066,-1410.88,0.00023632,2]
[382185991,1756537582088,-1410.88,0.00023632,2]
[382185992,1756537582112,-1410.88,0.00023632,2]
[382185993,1756537582136,-1410.88,0.00023632,2]
[382185994,1756537582178,-1410.88,0.00023632,2]
[382185995,1756537582215,-1410.88,0.00023632,2]
[382185996,1756537582237,-1410.88,0.00023632,2]
[382185997,1756537582259,-480.0,0.00023632,2]
[382185998,1756537582282,-1410.88,0.00023632,2]
[382185999,1756537582303,-1410.88,0.00023632,2]
[382186000,1756537582325,-3005.83,0.00023632,2]
[382186001,1756537582346,-480.0,0.00023632,2]
[382186002,1756537582369,-480.0,0.00023632,2]
[382186003,1756537582392,-480.0,0.00023632,2]
[382186004,1756537582418,-1405.41,0.00023632,2]
[382186005,1756537582441,-1616.75,0.00023632,2]
[382186006,1756537582467,-540.56,0.00023632,2]
[382186007,1756537582490,-790.93,0.00023632,2]
[382186008,1756537582512,-480.0,0.00023632,2]
[382186009,1756537582534,-480.0,0.00023632,2]
[382186010,1756537582556,-480.0,0.00023632,2]